bitfinex/quotes_BTCUSD_20251205
["timestamp","ask_amount","ask_price","bid_price","bid_amount"]
[1764975282819,0.00011843,89363.0,89362.0,0.39424213]
[1764975283033,0.00011843,89363.0,89362.0,0.37193316]
[1764975283788,0.00011843,89363.0,89362.0,0.39424213]
[1764975284208,0.00011843,89363.0,89362.0,0.39624213]
[1764975285495,0.00011843,89363.0,89362.0,0.37393316]
[1764975286402,0.00011843,89363.0,89362.0,0.24198877]
[1764975286606,0.00011843,89363.0,89362.0,0.22580877]
[1764975287598,0.00011843,89363.0,89362.0,0.22380877]
[1764975287841,0.01119093,89358.0,89354.0,0.01119144]
[1764975288113,0.22383793,89351.0,89342.0,0.01202]
[1764975288317,0.22383902,89350.0,89345.0,0.2238497]
[1764975288513,0.01119181,89351.0,89347.0,0.01119231]
[1764975288742,0.23503257,89350.0,89347.0,0.01119231]
[1764975289144,0.23503092,89350.0,89347.0,0.01119231]
[1764975289373,0.01119181,89351.0,89347.0,0.23503826]
[1764975289560,0.01119181,89351.0,89348.0,0.22384322]
[1764975289821,0.23502827,89351.0,89348.0,0.22384322]
[1764975290027,0.23502827,89351.0,89348.0,0.23503541]
[1764975291440,0.01119206,89349.0,89345.0,0.01119256]
[1764975291610,0.01119194,89350.0,89347.0,0.01119231]
[1764975292658,0.23503362,89349.0,89346.0,0.23503986]
[1764975292991,0.01119194,89350.0,89348.0,0.22384384]
[1764975293189,0.2350335,89349.0,89345.0,0.23504317]
[1764975293395,0.01119194,89350.0,89346.0,0.1208975]
[1764975293729,0.23503114,89350.0,89347.0,0.23603714]
[1764975293878,0.23503114,89350.0,89347.0,0.23503714]
[1764975294547,0.23503376,89349.0,89346.0,0.34474584]
[1764975294716,0.23503376,89349.0,89347.0,0.22384635]
[1764975294717,0.01119206,89349.0,89347.0,0.22384635]
[1764975294923,0.22383981,89350.0,89347.0,0.01219231]
[1764975295133,0.22383981,89350.0,89347.0,0.2360377]
[1764975295543,0.22384349,89349.0,89347.0,0.001]
[1764975295757,0.23503175,89350.0,89347.0,0.22484621]
[1764975296085,0.2238426,89349.0,89347.0,0.001]
[1764975296454,0.23503175,89350.0,89347.0,0.22484615]
[1764975296647,0.22384192,89349.0,89347.0,0.001]
[1764975297263,0.22384192,89349.0,89347.0,0.22484593]
[1764975297465,0.22384192,89349.0,89346.0,0.23503925]
[1764975297466,0.23503344,89349.0,89346.0,0.23503925]
[1764975297653,0.23503344,89349.0,89347.0,0.001]
[1764975297853,0.01119206,89349.0,89347.0,0.001]
[1764975298174,0.2350357,89349.0,89347.0,0.001]
[1764975298510,0.22384384,89348.0,89347.0,0.001]
[1764975299335,0.01119194,89350.0,89347.0,0.001]
[1764975299537,0.23503288,89350.0,89348.0,0.22384333]
[1764975299688,0.01119194,89350.0,89347.0,0.22484585]
[1764975299889,0.01119194,89350.0,89347.0,0.33355091]
[1764975300094,0.01590219,89351.0,89349.0,0.22384023]
[1764975300339,0.23973971,89351.0,89348.0,0.2238417]
[1764975300475,0.23503103,89350.0,89347.0,0.34574353]
[1764975300667,0.23503103,89350.0,89348.0,0.22384375]
[1764975301101,0.01119181,89351.0,89348.0,0.22384375]
[1764975301102,0.23502837,89351.0,89348.0,0.23503594]
[1764975301518,0.01119181,89351.0,89348.0,0.09614185]
[1764975301858,0.01119181,89351.0,89347.0,0.01119231]
[1764975301859,0.01590232,89350.0,89347.0,0.01119231]
[1764975302160,0.00471038,89350.0,89348.0,0.22384151]
[1764975302370,0.00471038,89352.0,89348.0,0.01119219]
[1764975302528,0.00471038,89352.0,89350.0,0.22383883]
[1764975302734,0.001,89351.0,89350.0,0.22383883]
[1764975303126,0.00471038,89352.0,89351.0,0.22383633]
[1764975303349,0.22383583,89352.0,89349.0,0.01119206]
[1764975303546,0.001,89352.0,89349.0,0.01119206]
[1764975303869,0.00571038,89352.0,89351.0,0.22383633]
[1764975304065,0.00571038,89352.0,89350.0,0.22383671]
[1764975304725,0.00471038,89352.0,89350.0,0.22383671]
[1764975304937,0.001,89352.0,89350.0,0.23502865]
[1764975305143,0.001,89352.0,89351.0,0.22383633]
[1764975305557,0.00471038,89353.0,89352.0,0.22383382]
[1764975305769,0.00471038,89355.0,89353.0,0.22383097]
[1764975305965,0.00471038,89355.0,89354.0,0.22382881]
[1764975306203,0.23501744,89356.0,89354.0,0.22382881]
[1764975306434,0.23501744,89356.0,89352.0,0.23502551]
[1764975306634,0.00471038,89355.0,89352.0,0.23502551]
[1764975306835,0.2397282,89355.0,89352.0,0.01119169]
[1764975306966,0.01119119,89356.0,89352.0,0.01119169]
[1764975307169,0.00471038,89355.0,89352.0,0.01119169]
[1764975307372,0.01119144,89354.0,89351.0,0.23502612]
[1764975307574,0.00471038,89353.0,89352.0,0.22383329]
[1764975308585,0.00471038,89354.0,89352.0,0.22383329]
[1764975308786,0.001,89353.0,89352.0,0.22383329]
[1764975309384,0.00471038,89354.0,89352.0,0.22383329]
[1764975310208,0.00471038,89354.0,89353.0,0.22383132]
[1764975310427,0.01119144,89354.0,89351.0,0.23502727]
[1764975310598,0.00471038,89353.0,89351.0,0.23502684]
[1764975310745,0.00471038,89353.0,89352.0,0.22383382]
[1764975310944,0.00471038,89353.0,89350.0,0.23503052]
[1764975311146,0.00471038,89353.0,89352.0,0.22383382]
[1764975311347,0.00471038,89353.0,89351.0,0.22383602]
[1764975311560,0.00471038,89353.0,89350.0,0.01119194]
[1764975311561,0.22854307,89353.0,89350.0,0.01119194]
[1764975311821,0.01219144,89354.0,89351.0,0.23502781]
[1764975312078,0.00471038,89353.0,89351.0,0.23502781]
[1764975312248,0.00471038,89353.0,89352.0,0.22383382]
[1764975312466,0.00571038,89353.0,89352.0,0.22383382]
[1764975312604,0.00571038,89353.0,89351.0,0.22383633]
[1764975313072,0.00571038,89353.0,89352.0,0.22383382]
[1764975313809,0.00471038,89353.0,89352.0,0.22383382]
[1764975314224,0.2285408,89354.0,89352.0,0.2238337]
[1764975314422,0.22383042,89354.0,89352.0,0.2238337]
[1764975314658,0.22383153,89353.0,89351.0,0.23502814]
[1764975314862,0.001,89354.0,89351.0,0.01119181]
[1764975315076,0.00471038,89354.0,89351.0,0.01119181]
[1764975315469,0.22953963,89354.0,89350.0,0.01119194]
[1764975315708,0.01119181,89351.0,89347.0,0.01119231]
[1764975315835,0.01119169,89352.0,89347.0,0.01119231]
[1764975316038,0.00471038,89351.0,89349.0,0.22384085]
[1764975316271,0.00471038,89351.0,89350.0,0.22383883]
[1764975316473,0.00471038,89351.0,89349.0,0.22384085]
[1764975316880,0.22854691,89351.0,89349.0,0.22384085]
[1764975317067,0.22383653,89351.0,89349.0,0.22384085]
[1764975317577,0.23502211,89354.0,89350.0,0.23503077]
[1764975317738,0.00471038,89353.0,89350.0,0.23503077]
[1764975317939,0.22854177,89353.0,89351.0,0.22383587]
[1764975318290,0.22383139,89353.0,89351.0,0.22383587]
[1764975318523,0.22383139,89353.0,89350.0,0.23503077]
[1764975318728,0.00471038,89352.0,89350.0,0.23503077]
[1764975318859,0.22854591,89352.0,89349.0,0.2350333]
[1764975319047,0.22383553,89352.0,89349.0,0.2350333]
[1764975319249,0.00471038,89351.0,89350.0,0.22383883]
[1764975320407,0.00471038,89352.0,89350.0,0.23503077]
[1764975320738,0.2285443,89352.0,89350.0,0.23503077]
[1764975320890,0.22383392,89352.0,89350.0,0.23503077]
[1764975321092,0.00471038,89351.0,89350.0,0.23503077]
[1764975321292,0.00571038,89351.0,89350.0,0.23503077]
[1764975322016,0.00471038,89351.0,89350.0,0.23503077]
[1764975322383,0.00471038,89351.0,89350.0,0.01119194]
[1764975322793,0.00471038,89351.0,89349.0,0.2350333]
[1764975323797,0.00571038,89351.0,89349.0,0.2350333]
[1764975323991,0.00571038,89351.0,89350.0,0.22383883]
[1764975324196,0.00571038,89351.0,89349.0,0.2350333]
[1764975324416,0.00471038,89351.0,89349.0,0.2350333]
[1764975324617,0.00571038,89351.0,89349.0,0.2350333]
[1764975324821,0.00571038,89351.0,89350.0,0.22383883]
[1764975325017,0.00571038,89351.0,89349.0,0.2350333]
[1764975325432,0.00571038,89351.0,89350.0,0.22383883]
[1764975325628,0.00571038,89351.0,89349.0,0.2350333]
[1764975326377,0.00471038,89351.0,89349.0,0.2350333]
[1764975326574,0.00571038,89351.0,89349.0,0.2350333]
[1764975327036,0.00471038,89351.0,89349.0,0.2350333]
[1764975327639,0.00571038,89351.0,89349.0,0.2350333]
[1764975329010,0.22954747,89351.0,89349.0,0.01119206]
[1764975329211,0.22483709,89351.0,89349.0,0.01119206]
[1764975329472,0.00471038,89350.0,89349.0,0.01119206]
[1764975330417,0.22854921,89350.0,89348.0,0.23503546]
[1764975330626,0.001,89350.0,89348.0,0.23503546]
[1764975330816,0.00571038,89350.0,89348.0,0.23503546]
[1764975332193,0.00471038,89350.0,89348.0,0.23503546]
[1764975332626,0.00571038,89350.0,89348.0,0.23503546]
[1764975333548,0.22954999,89350.0,89348.0,0.23503546]
[1764975333756,0.001,89350.0,89348.0,0.23503546]
[1764975333982,0.001,89350.0,89343.0,0.22385395]
[1764975333983,0.01119219,89348.0,89343.0,0.22385395]
[1764975334168,0.22384643,89347.0,89344.0,0.23504437]
[1764975334548,0.001,89350.0,89347.0,0.23503637]
[1764975334751,0.00571038,89350.0,89348.0,0.22384357]
[1764975335199,0.00471038,89350.0,89349.0,0.22384134]
[1764975336378,0.00471038,89351.0,89349.0,0.22384134]
[1764975336837,0.001,89350.0,89349.0,0.22384134]
[1764975337408,0.001,89350.0,89349.0,0.30141257]
[1764975337616,0.001,89350.0,89349.0,0.07757123]
[1764975337813,0.001,89350.0,89348.0,0.23503576]
[1764975338013,0.00571038,89350.0,89348.0,0.23503576]
[1764975338213,0.00471038,89350.0,89348.0,0.23503576]
[1764975339266,0.00571038,89350.0,89348.0,0.23503576]
[1764975339721,0.00571038,89350.0,89348.0,0.01119219]
[1764975340319,0.01690232,89350.0,89347.0,0.01119231]
[1764975340626,0.24074211,89350.0,89347.0,0.23503793]
[1764975340920,0.23503807,89348.0,89345.0,0.23504381]
[1764975341142,0.2350334,89349.0,89347.0,0.22384635]
[1764975341319,0.01119206,89349.0,89347.0,0.22384635]
[1764975341530,0.23503392,89349.0,89346.0,0.28687185]
[1764975342461,0.23503534,89349.0,89346.0,0.28687185]
[1764975342666,0.23503534,89349.0,89347.0,0.001]
[1764975342867,0.23503534,89349.0,89347.0,0.22384634]
[1764975343867,0.23503534,89349.0,89347.0,0.22484634]
[1764975344071,0.23503534,89349.0,89347.0,0.001]
[1764975344234,0.22384384,89348.0,89347.0,0.001]
[1764975345373,0.22386639,89339.0,89332.0,0.01202]
[1764975345595,0.23508632,89330.0,89329.0,0.64508138]
[1764975345752,0.01119432,89331.0,89327.0,0.01209]
[1764975345922,0.01119419,89332.0,89327.0,0.01209]
[1764975346118,0.23508243,89331.0,89327.0,0.01209]
[1764975346451,0.22389051,89330.0,89328.0,0.04007757]
[1764975347944,0.22389396,89328.0,89327.0,0.002]
[1764975348526,0.23508865,89328.0,89325.0,0.23509653]
[1764975348728,0.2238976,89327.0,89324.0,0.23509804]
[1764975348929,0.23509242,89327.0,89324.0,0.22390365]
[1764975349120,0.23509242,89327.0,89324.0,0.01119519]
[1764975349427,0.23509242,89327.0,89325.0,0.06250009]
[1764975349565,0.01119482,89327.0,89325.0,0.06250009]
[1764975349917,0.23509145,89327.0,89325.0,0.06250009]
[1764975350220,0.22390009,89326.0,89323.0,0.01119532]
[1764975350423,0.23509145,89327.0,89323.0,0.2351001]
[1764975350583,0.01119482,89327.0,89325.0,0.001]
[1764975350786,0.22389678,89327.0,89325.0,0.001]
[1764975351184,0.23508927,89328.0,89325.0,0.001]
[1764975351515,0.22389705,89327.0,89325.0,0.08533752]
[1764975352537,0.22389808,89327.0,89325.0,0.08533752]
[1764975353817,0.22389808,89327.0,89325.0,0.001]
[1764975354805,0.22389897,89326.0,89325.0,0.001]
[1764975355849,0.22390182,89325.0,89323.0,0.01119532]
[1764975356320,0.22390182,89325.0,89322.0,0.30306054]
[1764975357562,0.01119494,89326.0,89323.0,0.22390617]
[1764975357695,0.01119494,89326.0,89324.0,0.08198486]
[1764975358093,0.23509655,89325.0,89323.0,0.001]
[1764975358300,0.01119494,89326.0,89323.0,0.22490413]
[1764975358592,0.01119494,89326.0,89323.0,0.22390413]
[1764975358797,0.23509419,89326.0,89324.0,0.001]
[1764975358993,0.01119482,89327.0,89324.0,0.08648445]
[1764975359310,0.23509077,89328.0,89324.0,0.01119519]
[1764975359716,0.22389682,89327.0,89324.0,0.2350981]
[1764975360453,0.23509077,89328.0,89325.0,0.22390042]
[1764975360597,0.00471038,89327.0,89325.0,0.22390042]
[1764975361619,0.00471038,89327.0,89325.0,0.22490042]
[1764975361890,0.00471038,89327.0,89326.0,0.22389897]
[1764975362063,0.22392404,89316.0,89308.0,0.04582617]
[1764975362285,0.22392348,89317.0,89314.0,0.2351236]
[1764975362470,0.01119595,89318.0,89315.0,0.23512119]
[1764975362609,0.23511567,89318.0,89314.0,0.23512056]
[1764975362826,0.01119607,89317.0,89312.0,0.01964562]
[1764975363169,0.01119607,89317.0,89310.0,0.26875156]
[1764975363170,0.22393019,89314.0,89311.0,0.01119682]
[1764975363326,0.2239286,89315.0,89312.0,0.22393188]
[1764975363551,0.22393156,89313.0,89311.0,0.01119682]
[1764975363723,0.23512584,89314.0,89311.0,0.23513242]
[1764975363926,0.01119645,89314.0,89312.0,0.22393351]
[1764975364126,0.22392281,89317.0,89313.0,0.12090163]
[1764975364337,0.23512237,89316.0,89314.0,0.22392847]
[1764975364538,0.0111962,89316.0,89314.0,0.22392847]
[1764975364742,0.22392432,89316.0,89314.0,0.23512492]
[1764975364987,0.23511888,89317.0,89314.0,0.23512492]
[1764975365168,0.23511955,89317.0,89314.0,0.23512536]
[1764975365367,0.0111962,89316.0,89313.0,0.01319657]
[1764975365570,0.01119607,89317.0,89314.0,0.01119645]
[1764975365772,0.0111962,89316.0,89312.0,0.0111967]
[1764975365980,0.01119607,89317.0,89314.0,0.01119645]
[1764975366204,0.01119607,89317.0,89312.0,0.0111967]
[1764975366418,0.23511966,89317.0,89314.0,0.23512331]
[1764975366622,0.0111962,89316.0,89312.0,0.06346016]
[1764975366824,0.01119632,89315.0,89312.0,0.06346016]
[1764975367185,0.01119632,89315.0,89305.0,0.01764]
[1764975367186,0.01119645,89314.0,89306.0,0.01119745]
[1764975367388,0.01119695,89310.0,89307.0,0.22394661]
[1764975367613,0.22394288,89309.0,89307.0,0.01119733]
[1764975367814,0.23513127,89312.0,89309.0,0.23513866]
[1764975368018,0.0111967,89312.0,89310.0,0.22393796]
[1764975368228,0.23512562,89314.0,89311.0,0.2351311]
[1764975369077,0.22393229,89313.0,89311.0,0.2351311]
[1764975369290,0.23512562,89314.0,89311.0,0.2351311]
[1764975369499,0.22393407,89312.0,89309.0,0.23513647]
[1764975369710,0.01119657,89313.0,89310.0,0.01119695]
[1764975369921,0.01119645,89314.0,89311.0,0.23513321]
[1764975370135,0.23712755,89314.0,89311.0,0.23513321]
[1764975370316,0.23712755,89314.0,89310.0,0.23513602]
[1764975370317,0.23912755,89314.0,89310.0,0.23513602]
[1764975370529,0.23512755,89314.0,89310.0,0.23513602]
[1764975370774,0.0111967,89312.0,89308.0,0.0111972]
[1764975370985,0.22393745,89311.0,89308.0,0.23514031]
[1764975371673,0.22393972,89310.0,89308.0,0.2351406]
[1764975371895,0.0336219,89319.0,89316.0,0.0111962]
[1764975372108,0.0336219,89319.0,89310.0,0.01119695]
[1764975372109,0.23512254,89316.0,89312.0,0.23512953]
[1764975372342,0.01119595,89318.0,89313.0,0.01119657]
[1764975372549,0.01119582,89319.0,89315.0,0.2351204]
[1764975372759,0.23511371,89319.0,89316.0,0.22392382]
[1764975373186,0.23611371,89319.0,89316.0,0.22392382]
[1764975373808,0.23511595,89318.0,89315.0,0.01119632]
[1764975374025,0.00471038,89317.0,89315.0,0.01119632]
[1764975375101,0.00471038,89318.0,89316.0,0.22392404]
[1764975375319,0.03362099,89320.0,89319.0,0.22391652]
[1764975375546,0.01119519,89324.0,89320.0,0.22391401]
[1764975375758,0.03361964,89323.0,89321.0,0.22390919]
[1764975376404,0.03361964,89323.0,89322.0,0.223909]
[1764975377063,0.001,89323.0,89322.0,0.223909]
[1764975378149,0.01119507,89325.0,89322.0,0.223909]
[1764975378363,0.23509687,89325.0,89323.0,0.2239063]
[1764975378567,0.03361964,89324.0,89323.0,0.2239063]
[1764975380013,0.03561964,89324.0,89323.0,0.2239063]
[1764975380223,0.03561964,89324.0,89323.0,0.22390649]
[1764975380424,0.03561964,89324.0,89322.0,0.23510445]
[1764975380940,0.03561964,89324.0,89323.0,0.22390649]
[1764975381367,0.03661964,89324.0,89323.0,0.22390649]
[1764975382071,0.03461964,89324.0,89323.0,0.22390649]
[1764975382576,0.03561964,89324.0,89323.0,0.22390649]
[1764975382837,0.03461964,89324.0,89323.0,0.22390649]
[1764975382985,0.03661964,89324.0,89323.0,0.22390649]
[1764975385313,0.03661964,89324.0,89322.0,0.23510377]
[1764975386221,0.25852373,89324.0,89322.0,0.01119545]
[1764975386520,0.25752373,89324.0,89322.0,0.01119545]
[1764975386721,0.25852373,89324.0,89322.0,0.01119545]
[1764975387501,0.25952373,89324.0,89322.0,0.01119545]
[1764975388029,0.25952373,89324.0,89322.0,0.23510434]
[1764975389564,0.22390839,89323.0,89321.0,0.23510692]
[1764975390104,0.223909,89322.0,89319.0,0.23511188]
[1764975390303,0.23510371,89323.0,89320.0,0.22391173]
[1764975390549,0.03561964,89324.0,89320.0,0.22391173]
[1764975390550,0.001,89324.0,89321.0,0.0856478]
[1764975390842,0.001,89324.0,89322.0,0.22390726]
[1764975391040,0.001,89324.0,89323.0,0.22390649]
[1764975391345,0.23509373,89327.0,89324.0,0.22390271]
[1764975391541,0.01119482,89327.0,89325.0,0.22390126]
[1764975392243,0.22389823,89328.0,89325.0,0.22390126]
[1764975392660,0.003,89327.0,89325.0,0.22390126]
[1764975392855,0.22389659,89327.0,89325.0,0.22390126]
[1764975393030,0.22389659,89327.0,89326.0,0.08021455]
[1764975393229,0.22689659,89327.0,89326.0,0.08021455]
[1764975393814,0.22889659,89327.0,89325.0,0.22390126]
[1764975394218,0.22389659,89327.0,89325.0,0.22390126]
[1764975394650,0.22589659,89327.0,89325.0,0.22390126]
[1764975395026,0.23509292,89328.0,89325.0,0.22390126]
[1764975395209,0.003,89327.0,89325.0,0.22390126]
[1764975395417,0.005,89327.0,89325.0,0.22390126]
[1764975396936,0.22689689,89327.0,89325.0,0.22390126]
[1764975398106,0.22889689,89327.0,89325.0,0.22390126]
[1764975399586,0.22889689,89327.0,89324.0,0.2350979]
[1764975399798,0.005,89327.0,89325.0,0.22389929]
[1764975400199,0.22889845,89327.0,89324.0,0.30907781]
[1764975400355,0.23809327,89327.0,89324.0,0.30907781]
[1764975400760,0.24009327,89327.0,89324.0,0.30907781]
[1764975401078,0.23709327,89327.0,89324.0,0.30907781]
[1764975401440,0.24009327,89327.0,89325.0,0.22390129]
[1764975402245,0.23509391,89326.0,89323.0,0.22390564]
[1764975402652,0.01119494,89326.0,89324.0,0.22390397]
[1764975402879,0.01119494,89326.0,89324.0,0.22390342]
[1764975403507,0.01319494,89326.0,89324.0,0.22390342]
[1764975403926,0.23709586,89326.0,89323.0,0.23510096]
[1764975404089,0.23509586,89326.0,89323.0,0.23510096]
[1764975404286,0.23709586,89326.0,89323.0,0.23510096]
[1764975404619,0.23510029,89324.0,89321.0,0.23510655]
[1764975404946,0.22390649,89323.0,89322.0,0.07930961]
[1764975405231,0.22390649,89323.0,89320.0,0.24719924]
[1764975405441,0.23510029,89324.0,89321.0,0.22391117]
[1764975405646,0.22390678,89323.0,89321.0,0.22391117]
[1764975406053,0.22390678,89323.0,89320.0,0.24719924]
[1764975406673,0.2351021,89323.0,89321.0,0.22391151]
[1764975406879,0.2351021,89323.0,89322.0,0.08042847]
[1764975408743,0.2361021,89323.0,89322.0,0.08042847]
[1764975411626,0.01219532,89323.0,89322.0,0.08042847]
[1764975411832,0.001,89323.0,89322.0,0.30433747]
[1764975412198,0.001,89323.0,89322.0,0.08042847]
[1764975412399,0.001,89323.0,89322.0,0.30433747]
[1764975412810,0.001,89323.0,89322.0,0.08042847]
[1764975413248,0.22490649,89323.0,89322.0,0.08042847]
[1764975417038,0.22490649,89323.0,89322.0,0.11891847]
[1764975421390,0.001,89323.0,89322.0,0.03849]
[1764975422197,0.22490649,89323.0,89322.0,0.03849]
[1764975422602,0.001,89323.0,89322.0,0.26401187]
[1764975423814,0.23508791,89329.0,89326.0,0.01119494]
[1764975424065,0.2462826,89329.0,89328.0,0.02694]
[1764975424244,0.02238926,89329.0,89328.0,0.02694]
[1764975425068,0.24728071,89329.0,89328.0,0.02694]
[1764975425424,0.24628071,89329.0,89328.0,0.02694]
[1764975425624,0.24628071,89329.0,89328.0,0.08554539]
[1764975425625,0.24728071,89329.0,89328.0,0.08554539]
[1764975425850,0.24728071,89329.0,89328.0,0.10815539]
[1764975428408,0.24728071,89329.0,89328.0,0.11481539]
[1764975429309,0.24728071,89329.0,89328.0,0.00666]
[1764975430393,0.24728071,89329.0,89328.0,0.02226]
[1764975430930,0.24728071,89329.0,89328.0,0.04487]
[1764975431703,0.24728071,89329.0,89328.0,0.02226]
[1764975433360,0.24728071,89329.0,89328.0,0.00666]
[1764975434651,0.01219469,89329.0,89328.0,0.00666]
[1764975435364,0.01219469,89329.0,89328.0,0.23055396]
[1764975435564,0.23608614,89329.0,89328.0,0.00666]
[1764975436834,0.01219469,89329.0,89328.0,0.00666]
[1764975437034,0.23608614,89329.0,89328.0,0.00666]
[1764975437485,0.01219469,89329.0,89328.0,0.00666]
[1764975441088,0.23608614,89329.0,89328.0,0.00666]
[1764975441894,0.01219469,89329.0,89328.0,0.00666]
[1764975442179,0.23608614,89329.0,89328.0,0.00666]
[1764975442710,0.01219469,89329.0,89328.0,0.00666]
[1764975443706,0.01219469,89329.0,89328.0,0.23055396]
[1764975444526,0.01219469,89329.0,89328.0,0.30643802]
[1764975447048,0.01219469,89329.0,89328.0,0.23055396]
[1764975449926,0.001,89329.0,89328.0,0.23055396]
[1764975454892,0.001,89329.0,89328.0,0.26973396]
[1764975455118,0.001,89329.0,89328.0,0.27134683]
[1764975455493,0.001,89329.0,89328.0,0.2936558]
[1764975455698,0.03537278,89337.0,89328.0,0.2936558]
[1764975455699,0.01119369,89336.0,89334.0,0.22387801]
[1764975455907,0.01131212,89336.0,89334.0,0.22387801]
[1764975456106,0.00011843,89336.0,89335.0,0.02797]
[1764975457069,0.00011843,89336.0,89335.0,0.25184642]
[1764975458185,0.00111843,89336.0,89335.0,0.25184642]
[1764975460666,0.00111843,89336.0,89335.0,0.27440642]
[1764975467170,0.00111843,89336.0,89335.0,0.05053]
[1764975469024,0.22499234,89336.0,89335.0,0.05053]
[1764975475014,0.22499234,89336.0,89335.0,0.02797]
[1764975477826,0.00111843,89336.0,89335.0,0.25184642]
[1764975477966,0.22499234,89336.0,89335.0,0.09723713]
[1764975480493,0.22499234,89336.0,89335.0,0.12151713]
[1764975481942,0.22499234,89336.0,89335.0,0.09723713]
[1764975482144,0.22387714,89335.0,89333.0,0.01119407]
[1764975482322,0.23507501,89334.0,89331.0,0.22388615]
[1764975482665,0.22388156,89333.0,89330.0,0.235083]
[1764975482809,0.23507563,89333.0,89330.0,0.235083]
[1764975483011,0.01119407,89333.0,89331.0,0.09271471]
[1764975483617,0.23507761,89333.0,89331.0,0.09271471]
[1764975484094,0.01119407,89333.0,89331.0,0.09271471]
[1764975484255,0.23507762,89333.0,89331.0,0.09271471]
[1764975485140,0.23607762,89333.0,89331.0,0.09271471]
[1764975485358,0.23607762,89333.0,89332.0,0.10571384]
[1764975486373,0.23507762,89333.0,89332.0,0.10571384]
[1764975486512,0.23607762,89333.0,89332.0,0.10571384]
[1764975487122,0.01119432,89331.0,89328.0,0.00827287]
[1764975487364,0.22388895,89330.0,89328.0,0.00827287]
[1764975488128,0.22388895,89330.0,89328.0,0.23216656]
[1764975488329,0.22388895,89330.0,89328.0,0.23316656]
[1764975488564,0.22388895,89330.0,89328.0,0.00927287]
[1764975488766,0.23508565,89331.0,89328.0,0.23316645]
[1764975489283,0.23508565,89331.0,89328.0,0.23316604]
[1764975489626,0.23508565,89331.0,89328.0,0.23216604]
[1764975489838,0.23508565,89331.0,89328.0,0.00827287]
[1764975490095,0.23508565,89331.0,89328.0,0.00927287]
[1764975490337,0.23508565,89331.0,89328.0,0.00827287]
[1764975490691,0.01119432,89331.0,89328.0,0.24435987]
[1764975491099,0.23508142,89331.0,89328.0,0.24435987]
[1764975491259,0.22388975,89330.0,89328.0,0.02046756]
[1764975491978,0.22389009,89330.0,89328.0,0.00927287]
[1764975492445,0.2350823,89331.0,89328.0,0.23316629]
[1764975492617,0.22388923,89330.0,89328.0,0.00927287]
[1764975492990,0.22388895,89330.0,89328.0,0.00827287]
[1764975493191,0.23508307,89331.0,89328.0,0.00927287]
[1764975493472,0.22389009,89330.0,89328.0,0.00927287]
[1764975493811,0.01119432,89331.0,89328.0,0.02046756]
[1764975494010,0.23508111,89331.0,89328.0,0.28319925]
[1764975494235,0.23508181,89331.0,89328.0,0.28319925]
[1764975494443,0.23508181,89331.0,89328.0,0.0603069]
[1764975494752,0.22388919,89330.0,89328.0,0.0603069]
[1764975495410,0.23508181,89331.0,89328.0,0.28420018]
[1764975495847,0.23508181,89331.0,89329.0,0.01126]
[1764975496230,0.23508181,89331.0,89330.0,0.08738335]
[1764975497053,0.22388895,89330.0,89329.0,0.01126]
[1764975497291,0.23508166,89331.0,89329.0,0.01126]
[1764975498609,0.22388895,89330.0,89329.0,0.01126]
[1764975498965,0.22388796,89331.0,89329.0,0.01126]
[1764975499352,0.22388796,89331.0,89329.0,0.01226]
[1764975499585,0.22388796,89331.0,89329.0,0.01126]
[1764975499915,0.22388865,89331.0,89329.0,0.01226]
[1764975500089,0.22388865,89331.0,89330.0,0.06509372]
[1764975500292,0.22488865,89331.0,89330.0,0.10412372]
[1764975500694,0.22388865,89331.0,89330.0,0.08062372]
[1764975502050,0.22488865,89331.0,89330.0,0.08062372]
[1764975507908,0.22488865,89331.0,89330.0,0.01553]
[1764975509830,0.22388895,89330.0,89329.0,0.01126]
[1764975511599,0.22388895,89330.0,89329.0,0.01226]
[1764975512306,0.22388693,89331.0,89329.0,0.01226]
[1764975512711,0.22388895,89330.0,89329.0,0.01226]
[1764975512934,0.22388895,89330.0,89329.0,0.07156116]
[1764975514089,0.22388895,89330.0,89329.0,0.07056116]
[1764975514292,0.22388895,89330.0,89329.0,0.07156116]
[1764975514693,0.22388895,89330.0,89329.0,0.07056116]
[1764975514975,0.22388895,89330.0,89329.0,0.07156116]
[1764975517564,0.22388847,89331.0,89329.0,0.07156116]
[1764975517724,0.22388847,89331.0,89330.0,0.08762074]
[1764975520970,0.22488847,89331.0,89330.0,0.08762074]
[1764975525416,0.22488847,89331.0,89330.0,0.10412074]
[1764975526222,0.001,89331.0,89330.0,0.08762074]
[1764975526422,0.01219432,89331.0,89328.0,0.00827287]
[1764975526854,0.54689145,89329.0,89328.0,0.00666]
[1764975527053,0.6341845,89329.0,89328.0,0.00666]
[1764975527257,0.60397485,89329.0,89328.0,0.00666]
[1764975527431,0.69127991,89329.0,89328.0,0.00666]
[1764975527647,0.77639691,89329.0,89328.0,0.00666]
[1764975527850,0.73607607,89329.0,89328.0,0.00666]
[1764975528053,0.73607607,89329.0,89328.0,0.00766]
[1764975528257,0.71367607,89329.0,89328.0,0.00766]
[1764975528492,0.71367607,89329.0,89328.0,0.00666]
[1764975528860,0.63236705,89329.0,89328.0,0.00666]
[1764975529627,0.63536705,89329.0,89328.0,0.00666]
[1764975530228,0.65776705,89329.0,89328.0,0.00666]
[1764975530431,0.63536705,89329.0,89328.0,0.00666]
[1764975530626,0.65776705,89329.0,89328.0,0.00666]
[1764975530828,0.63536705,89329.0,89328.0,0.00666]
[1764975531033,0.65776705,89329.0,89328.0,0.00666]
[1764975531620,0.76747211,89329.0,89328.0,0.00666]
[1764975532022,0.65776705,89329.0,89328.0,0.00666]
[1764975532478,0.63536705,89329.0,89328.0,0.00666]
[1764975533046,0.63236705,89329.0,89328.0,0.00666]
[1764975533560,0.62936705,89329.0,89328.0,0.00666]
[1764975533777,0.63436705,89329.0,89328.0,0.00666]
[1764975534373,0.62386875,89329.0,89328.0,0.00666]
[1764975536766,0.86816875,89329.0,89328.0,0.00666]
[1764975540060,0.84577271,89329.0,89328.0,0.00666]
[1764975550266,0.8562346,89329.0,89328.0,0.00666]
[1764975554518,0.88639585,89329.0,89328.0,0.00666]
[1764975555279,0.90879585,89329.0,89328.0,0.00666]
[1764975555481,0.8786346,89329.0,89328.0,0.00666]
[1764975555688,0.8562346,89329.0,89328.0,0.00666]
[1764975555893,0.8538346,89329.0,89328.0,0.00666]
[1764975557978,0.9859357,89329.0,89328.0,0.00666]
[1764975558185,1.07915363,89329.0,89328.0,0.00201]
[1764975558397,0.01120034,89283.0,89280.0,0.0004]
[1764975558623,0.22401182,89281.0,89280.0,0.0004]
[1764975559679,0.01764,89285.0,89282.0,0.01120046]
[1764975559799,0.01764,89285.0,89284.0,0.2240043]
[1764975560406,0.01764,89285.0,89283.0,0.2240068]
[1764975560603,0.01764,89285.0,89284.0,0.2240043]
[1764975561494,0.323,89283.0,89282.0,0.22400931]